Cogmind - Beta 15 @@@ ROGUE MODE // 2025.08.31 @ 23:22:32 Player: SpeltIncorrectyl Result: Destroyed by G-47 Trooper with Particle Gun Performance ------------- Evolutions (1) 500 Regions Visited (4) 800 Robots Destroyed (61) 305 Value Destroyed (1598) 1598 Prototype IDs (2) 40 Alien Tech Used (0) 0 Bonus (73) 73 TOTAL SCORE: 3316 Bonus ------- High Alert Combat Kills 73 Cogmind --------- Core Integrity 0/400 Matter 300/300 Energy 123/125 System Corruption 1% Temperature Cool (15) Movement Flying (34) Location -9/Mines Parts ------- > --- POWER (1) -------- Light Ion Engine > --- PROPULSION (3) --- Flight Unit Flight Unit Improved Flight Unit > --- UTILITY (2) ------ Experimental Sensor Array Improved Targeting Computer > --- WEAPON (3) ------- Heavy Assault Rifle Heavy Assault Rifle Mini Grenade Launcher > --- INVENTORY (5) ---- Combat Airjet Improved Targeting Computer Thief Drone Bay Heavy Assault Rifle Rocket Launcher Peak State ------------ > --- POWER ------------ Reinforced Ion Engine > --- PROPULSION ------- Flight Unit Flight Unit Improved Flight Unit > --- UTILITY ---------- Experimental Sensor Array Improved Targeting Computer > --- WEAPON ----------- Heavy Assault Rifle Heavy Assault Rifle Grenade Launcher > --- INVENTORY -------- Flight Unit Improved Targeting Computer Thief Drone Bay Heavy Assault Rifle [Rating: 24] Favorites ----------- Power Reinforced Ion Engine Engine Reinforced Ion Engine Propulsion Wheel Wheel Wheel Hover Unit Hover Unit Flight Unit Flight Unit Utility Improved Targeting Computer Device Experimental Sensor Array Storage Medium Storage Unit Processor Improved Targeting Computer Weapon Autogun Ballistic Gun Autogun Launcher Grenade Launcher Build | -11 -10 -10 -9 -9 ------- Run | Yrd Mat Min Mat Min Slots Evolved 2 | . . . 2 . Power . | . . . . . Propulsion 1 | . . . 1 . Utility . | . . . . . Weapon 1 | . . . 1 . Parts Attached 39 | 6 1 . 28 4 Power 6 | 1 . . 3 2 Engine 6 | 1 . . 3 2 Core . | . . . . . Reactor . | . . . . . Propulsion 13 | 2 . . 11 . Treads . | . . . . . Leg . | . . . . . Wheel 8 | 2 . . 6 . Hover 1 | . . . 1 . Flight 4 | . . . 4 . Utility 4 | 1 1 . 1 1 Device 1 | . . . . 1 Storage 2 | 1 1 . . . Processor 1 | . . . 1 . Hackware . | . . . . . Protection . | . . . . . Artifact . | . . . . . Weapon 16 | 2 . . 13 1 Energy Gun . | . . . . . Energy Cannon . | . . . . . Ballistic Gun 14 | 2 . . 12 . Ballistic Cannon . | . . . . . Launcher 2 | . . . 1 1 Special Weapon . | . . . . . Impact Weapon . | . . . . . Slashing Weapon . | . . . . . Piercing Weapon . | . . . . . Special Melee Weapon . | . . . . . Unidentified Prototypes 2 | . . . 1 1 Parts Lost 14 | . . . 14 . Power 2 | . . . 2 . Propulsion 6 | . . . 6 . Utility . | . . . . . Weapon 6 | . . . 6 . Highest Loss Streak 5 | . . . 5 . To Critical Strikes 2 | . . . 2 . Average Backups 7 | 1 3 6 8 4 Power 1 | . 1 2 2 . Propulsion 1 | . . . 1 1 Utility . | . . . . 1 Weapon 3 | . 2 4 4 1 Tool/Special . | . . . . . Unused Backups 10 | . . . 6 4 Power 2 | . . . 2 . Propulsion 1 | . . . . 1 Utility 2 | . . . . 2 Weapon 5 | . . . 4 1 Tool/Special . | . . . . . Average Slot Usage (%) 83 | . 85 85 81 91 Engine 9 | . 14 14 9 4 Wheel 16 | . 28 28 18 . Flight 6 | . . . . 33 Device 1 | . . . . 9 Storage 9 | . 14 14 10 . Processor 9 | . . . 10 11 Ballistic Gun 29 | . 28 28 31 22 Launcher 1 | . . . . 11 Peak Build Rating 24 | 6 6 6 14 24 Average Rating 13 | 4 5 6 12 21 On Entrance 6 | . 6 6 6 12 Naked Turns . | . . . . . Heaviest Build 29 | 12 17 17 29 20 Greatest Support 30 | 26 26 26 30 13 Greatest Overweight (x) 6 | . . . 6 1 Average Overweight (x) . | . . . 1 . Largest Inventory Capacity 10 | 8 10 10 10 5 Average Capacity 8 | 7 8 10 9 5 Most Carried 10 | 4 6 7 10 5 Average Carried 7 | 1 3 6 8 4 Final Capacity 10 | 8 10 10 5 5 Final Carried 7 | 2 6 7 3 5 Class Distribution -------------------- 78% | Gunner 19% | Mutant Dominant Class ---------------- Mutant | -10/Materials Mutant | -10/Mines Gunner | -9/Materials Gunner | -9/Mines Resources | -11 -10 -10 -9 -9 ----------- Run | Yrd Mat Min Mat Min Matter Collected 2112 | 204 . 96 1488 324 Remotely . | . . . . . Salvage Created 2121 | . . 80 1960 81 Parts 125 | . . 4 114 7 Haulers Intercepted 3 | . . . 3 . Recyclers Shooed . | . . . . . Parts Field Recycled . | . . . . . Retrieved Matter . | . . . . . Parts Self-Destructed . | . . . . . Prevented . | . . . . . Kills | -11 -10 -10 -9 -9 ------- Run | Yrd Mat Min Mat Min Combat Hostiles Destroyed 42 | . . 2 38 2 Guns 39 | . . 2 36 1 AOE 3 | . . . 2 1 Classes Destroyed 9 | . . 1 8 . Worker 4 | . . . 4 . Builder 6 | . . . 4 2 Hauler 3 | . . . 3 . Recycler 1 | . . . 1 . Watcher 5 | . . . 5 . Swarmer 7 | . . . 7 . Grunt 24 | . . 2 21 1 Brawler 2 | . . . 1 1 Sentry 9 | . . . 9 . Best Kill Streak 9 | . . 2 9 4 Combat Bots Only 7 | . . 2 7 2 Max Kills in Single Turn 2 | . . 1 2 1 Gunslinging 1 | . . . 1 . Exploded 2 | . . . 2 1 Melee . | . . . . . Uniques/NPCs Destroyed . | . . . . . Combat | -11 -10 -10 -9 -9 -------- Run | Yrd Mat Min Mat Min Hostile Shots Fired 209 | . . 6 191 12 Missed 54 | . . . 48 6 Hits 155 | . . 6 143 6 Melee 6 | . . . 6 . Projectile 149 | . . 6 137 6 Critical Strikes 5 | . . . 5 . Damage Taken 2081 | . . 98 1906 77 Core 407 | . . . 380 27 Absorbed by Shields . | . . . . . Regen/Repaired (Parts) 81 | . . . 81 . Core Remaining (%) 100 | 100 . 100 . . Volleys Fired 136 | . . 5 120 11 Largest 3 | . . 2 3 3 Hottest 76 | . . 40 76 76 Shots Fired 377 | . . 10 342 25 Gun 370 | . . 10 338 22 Cannon . | . . . . . Launcher 7 | . . . 4 3 Special . | . . . . . Kinetic 370 | . . 10 338 22 Thermal . | . . . . . Explosive 7 | . . . 4 3 Electromagnetic . | . . . . . Robot Hit Streak 27 | . . 5 27 7 Robot Miss Streak 5 | . . 1 5 3 Penetration Max . | . . . . . Secondary Targets 5 | . . . 5 . Max Gunslinging Chain 1 | . . . 1 . Shots Hit Robots 240 | . . 7 219 14 Core Hits 90 | . . 4 80 6 Critical Kills 1 | . . . 1 . Critical Parts Destroyed 1 | . . . 1 . Critical Strikes 3 | . . . 3 . Destroy 3 | . . . 3 . Melee Attacks . | . . . . . Impact . | . . . . . Slashing . | . . . . . Piercing . | . . . . . Sneak Attacks . | . . . . . Combat Hostiles . | . . . . . Follow-up Attacks . | . . . . . Damage Inflicted 4032 | . . 94 3655 283 Guns 3593 | . . 94 3349 150 Cannons . | . . . . . Explosions 436 | . . . 303 133 Melee . | . . . . . Ramming 3 | . . . 3 . Kinetic 3593 | . . 94 3349 150 Thermal 163 | . . . 163 . Explosive 273 | . . . 140 133 Electromagnetic . | . . . . . Impact . | . . . . . Slashing . | . . . . . Piercing . | . . . . . Highest Corruption 1 | . . . 1 1 Average Corruption 1 | . . . 1 1 Corruption Purged . | . . . . . Corruption Blocked . | . . . . . Effects 8 | . . . 4 4 Message Errors 2 | . . . 1 1 Matter Fused 4 | . . . 1 3 Data Loss (minor) 1 | . . . 1 . Misfires 1 | . . . 1 . Overload Shots . | . . . . . Overflow Damage 59 | . . . 59 . Projectiles . | . . . . . Explosions 59 | . . . 59 . Melee . | . . . . . Knockbacks . | . . . . . Impact . | . . . . . Kinetic . | . . . . . Secondary . | . . . . . Self-Inflicted Damage 65 | . . . 65 . Shots 1 | . . . 1 . Rammed 1 | . . . 1 . Targets Rammed 1 | . . . 1 . Kicked . | . . . . . Crushed . | . . . . . Highest Temperature 206 | . . 2 206 41 Average Temperature 61 | . . 2 64 17 Received Heat Transfer 672 | . . 54 585 33 Siege Activations . | . . . . . Martial Activations . | . . . . . Shielding Activations . | . . . . . Robots Disrupted . | . . . . . Combat Hostiles . | . . . . . Robots Corrupted . | . . . . . Combat Hostiles . | . . . . . Parts Fried . | . . . . . Impact Corruptions . | . . . . . Robots Melted . | . . . . . Combat Hostiles . | . . . . . Parts Melted . | . . . . . Heat Transferred 150 | . . . 150 . Parts Sabotaged . | . . . . . Parts Stolen . | . . . . . Parts Stripped . | . . . . . Power Chain Reactions . | . . . . . Alert | -11 -10 -10 -9 -9 ------- Run | Yrd Mat Min Mat Min Maximum Alert Level 2 | . . . 2 1 Low Security (%) 41 | 100 100 100 27 48 Level 1 36 | . . . 40 51 Level 2 21 | . . . 31 . Level 3 . | . . . . . Level 4 . | . . . . . Level 5 . | . . . . . High Security . | . . . . . Max Security . | . . . . . Peak Influence 641 | . 14 40 641 249 Initial 249 | . . 1 3 249 Average 235 | . 1 10 293 203 Influence Increases 1429 | . 14 50 1285 80 Destroy 0b10 Robot/C 840 | . . 40 760 40 Destroy 0b10 Robot/NC 95 | . . . 85 10 Destroy Leader 206 | . . 10 186 10 Successful Hack 22 | . 14 . 8 . Disable Machine 105 | . . . 105 . Destroy Structure 86 | . . . 66 20 Partial Spotted 15 | . . . 15 . Lose Combat Pursuer 60 | . . . 60 . Influence Decreases 1270 | . 10 44 654 562 Entered New Map 402 | . . 3 7 392 Time Decay 728 | . 10 41 507 170 Lost Part 140 | . . . 140 . Squads Dispatched 5 | . . . 4 1 Investigation 2 | . . . 2 . Extermination . | . . . . . Reinforcement 2 | . . . 1 1 Assault 1 | . . . 1 . Garrison . | . . . . . Intercept . | . . . . . Searches Triggered . | . . . . . Construction Impeded 1 | . . . . 1 Haulers Reinforced . | . . . . . Active Scanning Responses . | . . . . . Cargo Convoy Interrupts . | . . . . . Stealth | -11 -10 -10 -9 -9 --------- Run | Yrd Mat Min Mat Min Distress Signals 4 | . . . 4 . Communications Jammed . | . . . . . Distress Signals . | . . . . . Times Spotted 64 | . . 2 56 6 Peak Tracking Total 8 | . . 2 8 2 Tactical Retreats 4 | . . . 3 1 Traps | -11 -10 -10 -9 -9 ------- Run | Yrd Mat Min Mat Min Traps Triggered 1 | . . . 1 . Indirectly . | . . . . . Trap Hack Attempts . | . . . . . Triggered . | . . . . . Disarmed . | . . . . . Reprogrammed . | . . . . . Reused . | . . . . . Traps Extracted . | . . . . . Installed . | . . . . . Triggered . | . . . . . Machines | -11 -10 -10 -9 -9 ---------- Run | Yrd Mat Min Mat Min Machines Disabled 7 | . . . 7 . Max in Single Turn 3 | . . . 3 . Machines Repaired . | . . . . . Machines Dismantled . | . . . . . Machines Sabotaged . | . . . . . Overloaded Fab Kills . | . . . . . Hacking | -11 -10 -10 -9 -9 --------- Run | Yrd Mat Min Mat Min Machines Accessed 6 | . 1 . 4 1 Terminals 3 | . 1 . 2 . Fabricators . | . . . . . Repair Stations 1 | . . . 1 . Recycling Units . | . . . . . Scanalyzers 1 | . . . 1 . Garrison Access . | . . . . . Total Hacks 12 | . 3 . 8 1 Successful 9 | . 2 . 6 1 Failed 3 | . 1 . 2 . Catastrophic 1 | . 1 . . . Database Lockouts . | . . . . . Manual 6 | . 3 . 3 . Terminals 6 | . 3 . 3 . Fabricators . | . . . . . Repair Stations 3 | . . . 3 . Recycling Units . | . . . . . Scanalyzers 2 | . . . 2 . Garrison Access . | . . . . . Terminal Hacks 4 | . 2 . 1 1 Open Door 1 | . . . . 1 Branch Access Points 2 | . 1 . 1 . Terminal Index 1 | . 1 . . . Fabricator Hacks . | . . . . . Repair Station Hacks 3 | . . . 3 . Scan Component 2 | . . . 2 . Repair 1 | . . . 1 . Recycling Unit Hacks . | . . . . . Scanalyzer 2 | . . . 2 . Insert Component 1 | . . . 1 . Analyze 1 | . . . 1 . Garrison Access Hacks . | . . . . . Unauthorized Hacks . | . . . . . Terminals . | . . . . . Fabricators . | . . . . . Repair Stations . | . . . . . Recycling Units . | . . . . . Scanalyzers . | . . . . . Garrison Access . | . . . . . Data Cores Recovered . | . . . . . Used . | . . . . . Hacking Detections 4 | . 1 . 3 . Full Trace Events 1 | . . . 1 . Feedback Events 1 | . . . 1 . Corruption 1 | . . . 1 . Feedback Blocked . | . . . . . Robot Schematics Acquired . | . . . . . Robots Built . | . . . . . Authchips . | . . . . . Time . | . . . . . Total Robot Build Rating . | . . . . . Part Schematics Acquired 1 | . . . 1 . Parts Built . | . . . . . Authchips . | . . . . . Time . | . . . . . Total Part Build Rating . | . . . . . Parts Repaired 1 | . . . 1 . Time 32 | . . . 32 . Parts Recycled . | . . . . . Recycled Matter . | . . . . . Retrieved Matter . | . . . . . Retrieved Components . | . . . . . Parts Scanalyzed 1 | . . . 1 . Part Schematics Acquired 1 | . . . 1 . Parts Damaged . | . . . . . Bothacking | -11 -10 -10 -9 -9 ------------ Run | Yrd Mat Min Mat Min Used RIF Installer . | . . . . . Robots Hacked . | . . . . . Non-combat . | . . . . . Combat . | . . . . . Robot Hacks Applied . | . . . . . Relay Couplers Released . | . . . . . Fabnet Peak Effective % . | . . . . . Robots Rewired . | . . . . . Allies Hacked . | . . . . . Hacks Repelled . | . . . . . Allies | -11 -10 -10 -9 -9 -------- Run | Yrd Mat Min Mat Min Total Allies . | . . . . . Largest Group . | . . . . . Highest-Rated Group . | . . . . . Highest-Rated Ally . | . . . . . Total Orders . | . . . . . Ally Attacks . | . . . . . Total Damage . | . . . . . Kills . | . . . . . Allies Corrupted . | . . . . . Allies Melted . | . . . . . Intel | -11 -10 -10 -9 -9 ------- Run | Yrd Mat Min Mat Min Active Infowar (turns) 320 | . . . . 320 Sensors 320 | . . . . 320 Robot Analysis Total . | . . . . . Derelict Logs Recovered 2 | . . . . 2 Drone Launches . | . . . . . Drone Recoveries . | . . . . . Exploration | -11 -10 -10 -9 -9 ------------- Run | Yrd Mat Min Mat Min Turns Passed 2194 | 54 89 188 1511 352 Spaces Moved 2291 | 50 92 179 1143 827 Core 14 | 12 . . 2 . Treads . | . . . . . Legs . | . . . . . Wheels 1383 | 38 92 179 1074 . Hover 4 | . . . 4 . Flight 890 | . . . 63 827 Fastest Speed 34 | 50 90 90 34 34 Average Speed 72 | 80 90 90 95 34 Slowest Speed 350 | 90 90 90 350 110 Overloaded Moves . | . . . . . Propulsion Burnouts . | . . . . . Robots Hopped 7 | . . . 2 5 Potential Cave-ins . | . . . . . Cave-ins Triggered . | . . . . . Exploration Rate (%) 46 | 3 21 44 69 94 Regions Visited 4 Branch Regions 2 Pre-discovered Areas . | . . . . . Known Exits Taken 2 | . 1 . 1 . Unknown Exits Taken 2 | 1 . 1 . . Scrap Searched 4 | . . 1 . 3 Spaces Dug 8 | . . . 8 . Terrain Destroyed 97 | . . . 75 22 Melee . | . . . . . Projectile . | . . . . . AOE 97 | . . . 75 22 Terrain Rammed . | . . . . . Walls Destroyed . | . . . . . Machines Disabled . | . . . . . Actions | -11 -10 -10 -9 -9 --------- Run | Yrd Mat Min Mat Min Total 2586 | 63 98 195 1365 865 Wait 52 | . . 11 23 18 Move 2273 | 49 91 178 1138 817 Hop 7 | . . . 2 5 Pick Up 48 | 8 5 1 29 5 Fast Attach 3 | . . . 1 2 Attach 36 | 6 1 . 27 2 Detach 2 | . . . 1 1 Swap 6 | . . . 5 1 Drop 22 | . 1 . 18 3 Fire 136 | . . 5 120 11 Melee . | . . . . . Ram 1 | . . . 1 . Kick . | . . . . . Crush . | . . . . . Escape Stasis . | . . . . . Rewire . | . . . . . Trap . | . . . . . Miscellaneous . | . . . . . Route ------- -11/Scrapyard -10/Materials -10/Mines -9/Materials (discovered 4 exits: [*Mat x2] / *Min x2) -9/Mines (discovered 1 exit: [*Mat]) History --------- Turn | Location | Event 8 | -11/Scrapyard | Discovered new exit (range 15) 55 | -11/Scrapyard | Entered Materials 91 | -10/Materials | Discovered new exit (range 7) 130 | -10/Materials | Identified exit to Mines 144 | -10/Materials | Entered Mines 305 | -10/Mines | Build established: Mutant 321 | -10/Mines | Discovered new exit (range 13) 332 | -10/Mines | Entered Materials 332 | -9/Materials | Evolved 2 slots: Propulsion x1, Weapon x1 468 | -9/Materials | Destroyed 7 combat bots 751 | -9/Materials | Discovered new exit (range 11) 936 | -9/Materials | Build established: Gunner 953 | -9/Materials | Discovered new exit (range 14) 1218 | -9/Materials | Lost 3 parts (1n2w) 1239 | -9/Materials | Destroyed 7 combat bots 1367 | -9/Materials | Core integrity fell below 50% 1399 | -9/Materials | Discovered new exit (range 13) 1411 | -9/Materials | Identified exit to Mines 1420 | -9/Materials | Repaired Autogun? 1532 | -9/Materials | First assault squad dispatched 1686 | -9/Materials | Lost 5 parts (1p2n2w) 1798 | -9/Materials | Core integrity fell below 20% 1843 | -9/Materials | Entered Mines 1844 | -9/Mines | Joined a pair of Derelicts in attacking an 0b10 outpost 1848 | -9/Mines | Assembled infested the area 1853 | -9/Mines | Found a hidden stash of uninstalled traps 1873 | -9/Mines | Found a damaged Exp. Sensor Array with a note attached 1874 | -9/Mines | Found Prototype Device 1875 | -9/Mines | Identified Exp. Sensor Array 1905 | -9/Mines | Learned Materials interactive machine intel 1939 | -9/Mines | Found the Drone Emporium 1939 | -9/Mines | Found Prototype Device 2083 | -9/Mines | Received a Rocket Launcher from a helpful Derelict 2146 | -9/Mines | Discovered new exit (range 12) 2195 | -9/Mines | Destroyed by G-47 Trooper with Particle Gun Last Messages --------------- Acquired Rocket Launcher. R-06 Scavenger collects Terrain Scan Processor. Acquired 45 matter. Extracted 26 matter. Dropped Flight Unit. Acquired Cmb. Airjet. Dropped Grenade Launcher. Acquired Mni. Grenade Launcher. Acquired 19 matter. Acquired 1 matter. EXIT=FOUND DV|RE8:T#6|UZL# Searching scrap... Found Imp. Targeting Computer. Found 55 Matter. T-07 Excavator is excavating. Map ----- +----------------------------------------------------+ | ?####????????# #??# ####?????? | | ??????????##?# #### #??# #####????????? | | ??????????# ## ####??# #??# #????????????? | | #?????????# ####?????# #### #????????????? | | #?????????# ##????????# #????????????? | | ##????????## ##?????????# #????????????? | | #?????????## ##??#####??###### ###????????????? | | #????####### #?## ##??????# #??????????????? | | ####?# %%% ### #??????# #?######???????? | | #?# #### #??????# ### ##??????? | | ## #?# #??## ? #???????# ## ##?????? | | ## ### #???######## % #??????## ? ##????? | | #??????????# ! #??????# #????? | | #??????????# ##?????## ### ##????? | | ########??????????## ######?## ###?###?????? | | ##????????????????## ##?#####???????????? | | #??????????######## #?????????????????? | | #?????????## ### ? #?????????????????? | | #?????????# #####g ##?????????????????? | | ##?????????# #??# ##??????????????????? | | ##??????????# ##?# ###???????????????????? | | #???????????## ?### ### #?????????????????????? | | ##????????????# #?## * ##????????????????????? | | ??????????????###???## k #????????????????????? | | ?????????????????????# [ #????????????????????? | | ????????????????????## @ #????????????????????? | | ????????????????????# * ##????????????????????? | | ????????????????????# ##?????????????????????? | | ????????????????????# ####??????????????????????? | | ????????????????????# #?????????????????????????? | | ????????????????????# #?????????????????????????? | | ????????????????????# #?????????????????????????? | | ????????????????????# ?? ??????????????????????? | | ????????????????????#? ??????????????????? | | ????????????????????############?????????????????? | | ?????????????????????????????????????????????????? | | | | | | | | | | | | | | | | | | | | | | | | | | | | | +----------------------------------------------------+ Best States ------------- Heat Dissipation 28 Energy Generation 12 Energy Capacity 265 Matter Stores 300 Matter Capacity 300 Sight Range 16 Robot Scan Range 20 Terrain Scan Density 10 Evasion (%) 63 Targeting Accuracy 6 Item Schematics ----------------- Autogun | -9/Materials | Scanalyzed Robot Schematics ------------------ None Fabricated ------------ Nothing Repaired ---------- Autogun | 29% | -9/Materials Alien Tech Used ----------------- None Achievements -------------- None Challenges ------------ None Game ------ Seed ServoChargeCloak Manual? 0 Play Time 00:26:38 Cumulative 39.4 hours Start 2025.08.31 @ 22:43:43 End 2025.08.31 @ 23:22:32 Sessions 1 Manual Loads 0 Difficulty Rogue Special Mode None Game No. 53 Rogue 43 Adventurer 10 Explorer 0 Win Type - Total 0 Types 0/0/0/0/0/0/0/0/0/0 Lore% 12 Gallery% 24 Achievement% 30 Wizard Run 0 Options --------- Layout 1 ASCII 0 Keyboard 0 Movement Arrows Keybinds 0 Fullscreen 1 Font 24/Smallcaps Map View 50x35 Zoom Use 0% Tactical HUD 0 Map Filters NONE Filters NONE Steam 1 RUN: 11dd6152-59e1-4db7-8590-8dc95d583b5e